lending/lending_fUSD_20251107
["ID","MTS","AMOUNT","RATE_DAILY","PERIOD"]
[393341110,1762492250578,-1000.0,0.00038231,7]
[393341111,1762492250587,-150.0,0.00038231,2]
[393341112,1762492250597,-339.32,0.00038232,2]
[393341113,1762492250607,-700.0,0.00038232,30]
[393341114,1762492250617,-150.0,0.00038242,7]
[393341115,1762492250627,-150.0,0.00038244,7]
[393341116,1762492250636,-300.0,0.00038246,2]
[393341117,1762492250647,-500.0,0.00038248,30]
[393341118,1762492250657,-150.0,0.00038251,7]
[393341119,1762492250667,-800.0,0.00038253,30]
[393341120,1762492250679,-1000.0,0.00038257,7]
[393341121,1762492250688,-1000.0,0.00038259,7]
[393341122,1762492250698,-1000.0,0.00038263,7]
[393341123,1762492250708,-300.0,0.00038264,2]
[393341124,1762492250718,-628.08759491,0.00038268,30]
[393341125,1762492250729,-150.0,0.00038273,7]
[393341126,1762492250739,-1000.0,0.00038275,7]
[393341127,1762492250750,-1000.0,0.00038275,7]
[393341128,1762492250762,-150.0,0.00038298,7]
[393341129,1762492250772,-300.0,0.00038299,2]
[393341130,1762492250782,-300.0,0.00038301,2]
[393341131,1762492250792,-264.0,0.00038301,20]
[393341132,1762492250801,-1000.0,0.00038304,7]
[393341133,1762492250811,-300.0,0.00038307,2]
[393341134,1762492250821,-1000.0,0.00038313,7]
[393341135,1762492250830,-300.0,0.00038325,2]
[393341136,1762492250840,-1000.0,0.00038326,7]
[393341137,1762492250850,-300.0,0.0003834,2]
[393341138,1762492250859,-999.0,0.00038356,120]
[393341139,1762492250869,-500.0,0.00038356,2]
[393341140,1762492250879,-1000.0,0.00038359,7]
[393341141,1762492250889,-800.0,0.00038364,30]
[393341142,1762492250899,-97652.45989622,0.0003837,2]
[393341143,1762492250908,-300.0,0.00038374,2]
[393341144,1762492250917,-1000.0,0.00038375,7]
[393341145,1762492250927,-150.0,0.00038381,7]
[393341146,1762492250938,-1000.0,0.00038397,7]
[393341147,1762492250947,-300.0,0.00038402,2]
[393341148,1762492250957,-300.0,0.00038427,2]
[393341149,1762492250967,-1000.0,0.00038429,7]
[393341150,1762492250976,-300.0,0.00038435,2]
[393341151,1762492250987,-200.0,0.00038436,20]
[393341152,1762492250998,-200.0,0.00038437,20]
[393341153,1762492251007,-150.0,0.00038438,7]
[393341154,1762492251017,-300.0,0.00038438,2]
[393341155,1762492251027,-800.0,0.00038443,30]
[393341156,1762492251038,-300.0,0.00038447,2]
[393341157,1762492251047,-150.0,0.00038452,7]
[393341158,1762492251056,-1000.0,0.00038453,7]
[393341159,1762492251066,-1000.0,0.00038458,7]
[393341160,1762492251076,-722.9,0.00038459,30]
[393341161,1762492251087,-722.9,0.00038459,30]
[393341162,1762492251098,-722.9,0.00038459,30]
[393341163,1762492251108,-722.9,0.00038459,30]
[393341164,1762492251117,-500.0,0.00038463,30]
[393341165,1762492251127,-1000.0,0.0003847,14]
[393341166,1762492251136,-500.0,0.00038472,30]
[393341167,1762492251146,-1000.0,0.00038473,7]
[393341168,1762492251156,-500.0,0.00038484,30]
[393341169,1762492251166,-1000.0,0.00038489,7]
[393341170,1762492251175,-1000.0,0.0003849,7]
[393341171,1762492251185,-1000.0,0.00038491,7]
[393341172,1762492251194,-1000.0,0.00038494,7]
[393341173,1762492251204,-800.0,0.00038498,30]
[393341174,1762492251214,-1404.28,0.000385,30]
[393341175,1762492251224,-769.545172,0.000385,27]
[393341176,1762492251234,-500.0,0.000385,14]
[393341177,1762492251244,-1500.0,0.000385,27]
[393341178,1762492251254,-500.0,0.00038505,5]
[393341179,1762492251264,-1000.0,0.00038511,7]
[393341180,1762492251273,-300.0,0.00038514,2]
[393341181,1762492251283,-500.0,0.00038518,30]
[393341182,1762492251293,-700.0,0.00038521,30]
[393341183,1762492251303,-1000.0,0.00038528,7]
[393341184,1762492251312,-300.0,0.00038537,2]
[393341185,1762492251322,-1000.0,0.00038549,7]
[393341186,1762492251332,-1000.0,0.00038549,7]
[393341187,1762492251342,-1000.0,0.0003855,7]
[393341188,1762492251352,-1000.0,0.00038568,7]
[393341189,1762492251361,-1000.0,0.0003857,7]
[393341190,1762492251370,-1000.0,0.00038571,7]
[393341191,1762492251381,-200.16337338,0.00038572,4]
[393341192,1762492251400,-544.57170129,0.00038579,7]
[393341193,1762492251409,-1000.0,0.00038586,7]
[393341194,1762492251419,-152.0,0.00038589,15]
[393341195,1762492251429,-800.0,0.00038591,30]
[393341196,1762492251439,-1000.0,0.00038592,7]
[393341197,1762492251449,-1000.0,0.00038593,7]
[393341198,1762492251459,-1000.0,0.00038596,7]
[393341199,1762492251468,-1000.0,0.00038596,7]
[393341200,1762492251478,-6805.44644517,0.000386,30]
[393341201,1762492251488,-372.06,0.000386,14]
[393341202,1762492251498,-2000.0,0.000386,2]
[393341203,1762492251508,-500.0,0.000386,14]
[393341204,1762492251519,-1000.0,0.00038605,7]
[393341205,1762492251529,-2000.0,0.00038608,3]
[393341206,1762492251539,-2000.0,0.00038608,3]
[393341207,1762492251549,-1000.0,0.00038611,7]
[393341208,1762492251559,-150.0,0.00038615,7]
[393341209,1762492251569,-500.0,0.00038616,30]
[393341210,1762492251579,-300.0,0.00038621,2]
[393341211,1762492251589,-1000.0,0.00038623,7]
[393341212,1762492251599,-300.0,0.00038629,2]
[393341213,1762492251608,-199.0,0.0003863,11]
[393341214,1762492251618,-564.85530141,0.0003863,120]
[393341215,1762492251628,-500.0,0.00038631,10]
[393341216,1762492251638,-150.0,0.00038631,10]
[393341217,1762492251648,-500.0,0.00038631,10]
[393341218,1762492251658,-500.0,0.00038631,10]
[393341219,1762492251671,-500.0,0.00038631,10]
[393341220,1762492251681,-500.0,0.00038631,10]
[393341221,1762492251691,-500.0,0.00038631,10]
[393341222,1762492251700,-500.0,0.00038631,10]
[393341223,1762492251711,-500.0,0.00038631,10]
[393341224,1762492251720,-500.0,0.00038631,10]
[393341225,1762492251730,-500.0,0.00038631,10]
[393341226,1762492251740,-500.0,0.00038631,10]
[393341227,1762492251750,-168.34614064,0.00038631,10]
[393341228,1762492251760,-500.0,0.00038631,10]
[393341229,1762492251770,-150.0,0.00038631,10]
[393341230,1762492251780,-158.10520821,0.00038631,10]
[393341231,1762492251790,-150.0,0.00038631,10]
[393341232,1762492251800,-150.0,0.00038631,10]
[393341233,1762492251810,-500.0,0.00038631,10]
[393341234,1762492251819,-155.73974734,0.00038631,10]
[393341235,1762492251829,-150.0,0.00038631,10]
[393341236,1762492251838,-150.0,0.00038631,10]
[393341237,1762492251848,-500.0,0.00038631,10]
[393341238,1762492251857,-150.0,0.00038631,2]
[393341239,1762492251867,-500.0,0.00038631,10]
[393341240,1762492251877,-150.0,0.00038631,10]
[393341241,1762492251886,-150.0,0.00038631,10]
[393341242,1762492251896,-150.0,0.00038631,2]
[393341243,1762492251905,-153.84516862,0.00038631,10]
[393341244,1762492251914,-162.74955591,0.00038631,10]
[393341245,1762492251925,-203.86759785,0.00038631,10]
[393341246,1762492251935,-500.0,0.00038631,10]
[393341247,1762492251945,-500.0,0.00038631,10]
[393341248,1762492251954,-150.0,0.00038631,10]
[393341249,1762492251964,-150.57079425,0.00038631,10]
[393341250,1762492251973,-152.44485663,0.00038631,10]
[393341251,1762492251984,-500.0,0.00038631,10]
[393341252,1762492251994,-150.0,0.00038631,10]
[393341253,1762492252004,-150.0,0.00038631,60]
[393341254,1762492252015,-500.0,0.00038631,10]
[393341255,1762492252025,-150.0,0.00038631,10]
[393341256,1762492252036,-500.0,0.00038631,2]
[393341257,1762492252184,-596.0,0.00038631,10]
[393341258,1762492252193,-500.0,0.00038631,10]
[393341259,1762492252202,-150.0,0.00038631,10]
[393341260,1762492252211,-500.0,0.00038631,10]
[393341261,1762492252220,-150.0,0.00038631,10]
[393341262,1762492252229,-150.0,0.00038631,10]
[393341263,1762492252239,-500.0,0.00038631,10]
[393341264,1762492252249,-206.67991909,0.00038631,2]
[393341265,1762492252258,-150.0,0.00038631,10]
[393341266,1762492252267,-500.0,0.00038631,10]
[393341267,1762492252276,-500.0,0.00038631,10]
[393341268,1762492252285,-500.0,0.00038631,10]
[393341269,1762492252294,-500.0,0.00038631,10]
[393341270,1762492252303,-500.0,0.00038631,10]
[393341271,1762492252313,-1000.0,0.00038644,7]
[393341272,1762492252322,-1000.0,0.00038648,7]
[393341273,1762492252331,-300.0,0.00038649,2]
[393341274,1762492252342,-1000.0,0.00038652,7]
[393341275,1762492252351,-167.83,0.00038655,120]
[393341276,1762492252360,-176.48,0.00038655,120]
[393341277,1762492252369,-628.08,0.00038655,120]
[393341278,1762492252378,-282.0,0.00038655,2]
[393341279,1762492252387,-787.5776573,0.00038655,2]
[393341280,1762492252396,-167.4277544,0.00038655,120]
[393341281,1762492252406,-547.46257268,0.00038655,2]
[393341282,1762492252416,-1000.0,0.00038661,7]
[393341283,1762492252426,-150.0,0.00038669,7]
[393341284,1762492252435,-1000.0,0.0003867,7]
[393341285,1762492252444,-287.66596389,0.00038672,2]
[393341286,1762492252454,-371.91137564,0.00038672,2]
[393341287,1762492252463,-150.0,0.0003868,7]
[393341288,1762492252473,-264.0,0.00038688,20]
[393341289,1762492252482,-159.61845324,0.00038689,7]
[393341290,1762492252491,-204.49895673,0.000387,120]
[393341291,1762492252501,-185.2991992,0.000387,120]
[393341292,1762492252511,-170.07177672,0.000387,120]
[393341293,1762492252520,-1480.28723572,0.000387,120]
[393341294,1762492252530,-224.00065513,0.000387,120]
[393341295,1762492252539,-203.84,0.000387,10]
[393341296,1762492252548,-191.23427542,0.000387,120]
[393341297,1762492252557,-372.06,0.000387,14]
[393341298,1762492252566,-300.0,0.000387,17]
[393341299,1762492252575,-395.0,0.000387,2]
[393341300,1762492252584,-1000.0,0.000387,30]
[393341301,1762492252594,-1000.0,0.000387,30]
[393341302,1762492252603,-1000.0,0.000387,30]
[393341303,1762492252612,-1000.0,0.000387,30]
[393341304,1762492252621,-1000.0,0.000387,30]
[393341305,1762492252631,-1000.0,0.000387,30]
[393341306,1762492252640,-1000.0,0.000387,30]
[393341307,1762492252649,-1000.0,0.000387,30]
[393341308,1762492252659,-1000.0,0.000387,30]
[393341309,1762492252673,-1000.0,0.000387,30]
[393341310,1762492252686,-1000.0,0.000387,30]
[393341311,1762492252695,-1000.0,0.000387,30]
[393341312,1762492252704,-1000.0,0.000387,30]
[393341313,1762492252714,-1000.0,0.000387,30]
[393341314,1762492252726,-500.0,0.000387,14]
[393341315,1762492252736,-184.12,0.000387,38]
[393341316,1762492252745,-1005.0,0.000387,7]
[393341317,1762492252756,-200.0,0.000387,17]
[393341318,1762492252766,-1000.0,0.0003871,7]
[393341319,1762492252775,-156.627592,0.00038716,30]
[393341320,1762492252785,-1000.0,0.00038721,7]
[393341321,1762492252794,-1000.0,0.00038722,7]
[393341322,1762492252804,-700.0,0.0003873,30]
[393341323,1762492252813,-722.9,0.00038733,30]
[393341324,1762492252822,-722.9,0.00038733,30]
[393341325,1762492252831,-1000.0,0.00038733,7]
[393341326,1762492252841,-500.0,0.00038733,30]
[393341327,1762492252850,-1000.0,0.00038744,14]
[393341328,1762492252859,-620.28676495,0.00038745,2]
[393341329,1762492252869,-175.48706705,0.00038747,120]
[393341330,1762492252878,-2000.0,0.00038747,2]
[393341331,1762492252890,-2000.0,0.00038747,2]
[393341332,1762492252899,-2000.0,0.00038747,2]
[393341333,1762492252908,-2000.0,0.00038747,2]
[393341334,1762492252918,-2000.0,0.00038747,2]
[393341335,1762492252927,-437.78148578,0.00038748,7]
[393341336,1762492252936,-150.0,0.00038748,2]
[393341337,1762492252945,-594.79762274,0.00038748,2]
[393341338,1762492252955,-150.0,0.00038748,2]
[393341339,1762492252965,-150.0,0.00038748,2]
[393341340,1762492252974,-2742.82909264,0.00038748,2]
[393341341,1762492252985,-150.0,0.00038748,2]
[393341342,1762492252994,-895.5092866,0.00038748,2]
[393341343,1762492253003,-150.0,0.00038748,2]
[393341344,1762492253013,-2370.91853627,0.00038748,2]
[393341345,1762492253023,-1500.0,0.0003875,30]
[393341346,1762492253033,-1500.0,0.0003875,30]
[393341347,1762492253042,-1500.0,0.0003875,30]
[393341348,1762492253052,-1500.0,0.0003875,30]
[393341349,1762492253061,-1500.0,0.0003875,30]
[393341350,1762492253071,-1500.0,0.0003875,30]
[393341351,1762492253083,-1500.0,0.0003875,30]
[393341352,1762492253093,-1500.0,0.0003875,30]
[393341353,1762492253102,-1500.0,0.0003875,30]
[393341354,1762492253116,-1500.0,0.0003875,30]
[393341355,1762492253126,-1500.0,0.0003875,30]
[393341356,1762492253135,-300.0,0.00038754,10]
[393341357,1762492253144,-5097.14729007,0.00038754,30]
[393341358,1762492253153,-1479298.08162707,0.00038755,30]
[393341359,1762492253354,-1396.78893979,0.00038755,30]
[393341360,1762492253460,-266.75267811,0.00020339,5]
[393341361,1762492253470,-151.0,0.00020897,2]
[393341362,1762492253479,-522.561294,0.0002769,31]
[393341363,1762492253489,-559.0,0.0002784,2]
[393341364,1762492253498,-270.732,0.0003084,2]
[393341365,1762492253508,-300.0,0.00038524,2]
[393341366,1762492253517,-28644.51250789,0.00038755,30]
[393341367,1762492253536,-522.561294,0.0003384,31]
[393341368,1762492253546,-7680.0827297,0.00038755,30]
[393341369,1762492253584,-865233.04859434,0.00038755,30]
[393341370,1762492253593,-304751.32212431,0.00038755,30]
[393341371,1762492253823,-522.561294,0.0002769,31]
[393341372,1762492253840,-5.09108638,0.0002769,31]
[393341373,1762492254043,-517.47020762,0.0002769,31]
[393341374,1762492254052,-457.52979218,0.0002769,31]
[393341375,1762492254090,-65.03150182,0.0002769,31]
[393341376,1762492254099,-81.28213565,0.00031444,2]
[393341377,1762492254111,-80.61283549,0.00031444,2]
[393341378,1762492254120,-522.561294,0.0003384,31]
[393341379,1762492254129,-522.561294,0.0003384,31]
[393341380,1762492254138,-522.561294,0.0003384,31]
[393341381,1762492254147,-161.89497113,0.00035058,2]
[393341382,1762492254157,-698.68,0.00035901,2]
[393341383,1762492254166,-334.77401808,0.00036372,16]
[393341384,1762492254175,-1063.41,0.0003686,2]
[393341385,1762492254184,-500.0,0.00038631,10]
[393341386,1762492254193,-150.0,0.00038631,2]
[393341387,1762492254203,-435.47606465,0.00038655,15]
[393341388,1762492254215,-36581.90081977,0.00038755,30]
[393341389,1762492254235,-5570.45453968,0.00038755,30]
[393341390,1762492254247,-331.41006544,0.00038755,30]
[393341391,1762492254350,400.0,0.00038772,120]
[393341399,1762492497137,12000.999999,0.00038776,60]
[393341400,1762492503181,5829.0,0.00038776,120]
[393341401,1762492534451,16092.8764104,0.00038776,120]
[393341402,1762492569143,825.89,0.00013699,2]
[393341405,1762492803110,638.92856943,0.00038759,120]
[393341406,1762492847269,478.57,0.00038759,120]
[393341408,1762493102039,-1609.63,0.00016438,2]
[393341409,1762493102073,-300.0,0.00016467,2]
[393341410,1762493102102,-250.0,0.00016495,2]
[393341411,1762493102348,-166.66,0.00016552,2]
[393341412,1762493102382,-335.4709574,0.00016622,2]
[393341413,1762493102414,-250.0,0.00016722,2]
[393341414,1762493102444,-166.66,0.00016901,2]
[393341415,1762493102474,-773.21698856,0.00017,2]
[393341416,1762493102503,-250.0,0.00017232,2]
[393341417,1762493102532,-300.0,0.00017248,2]
[393341418,1762493104917,-1200.0,0.00017248,2]
[393341419,1762493107882,-0.02,0.00017249,2]
[393341420,1762493110906,-0.04,0.00017249,2]
[393341421,1762493113996,-0.08,0.00017249,2]
[393341422,1762493123205,6138.36680757,0.0003876,120]
[393341423,1762493160977,296.69101894,8e-05,2]
[393341424,1762493162712,16437.60219638,0.0003876,120]
[393341425,1762493164839,9345.04476427,0.00011,2]
[393341428,1762493181430,1042874.27580754,0.000295,120]
[393341429,1762493223843,-300.0,0.00016199,2]
[393341430,1762493227116,-4034.21022035,0.000162,5]
[393341431,1762493227160,-10000.01,0.000162,5]
[393341432,1762493229860,-10000.01,0.000162,5]
[393341433,1762493232696,-10000.01,0.000162,5]
[393341434,1762493232822,-393.10572839,0.000162,5]
[393341435,1762493232846,-9213.79854322,0.000162,5]
[393341436,1762493235631,313.41,8.671e-05,2]
[393341437,1762493235821,313.41,9.11e-05,2]
[393341438,1762493236012,313.41,9.548e-05,2]
[393341439,1762493236231,313.41,9.987e-05,2]
[393341440,1762493236410,313.41,0.00010425,2]
[393341441,1762493236609,313.41,0.00010863,2]
[393341442,1762493237015,313.41,0.00011302,2]
[393341443,1762493237063,313.41,0.0001174,2]
[393341444,1762493237244,313.41,0.00012179,2]
[393341445,1762493237467,313.41,0.00012617,2]
[393341446,1762493237656,313.41,0.00013056,2]
[393341447,1762493237854,313.41,0.00013494,2]
[393341448,1762493238263,313.41,0.00013933,2]
[393341449,1762493238459,313.41,0.00014371,2]
[393341450,1762493238655,313.41,0.0001481,2]
[393341451,1762493241397,5838.54266657,0.0003876,120]
[393341453,1762493259562,9142.24149836,0.0003876,120]
[393341454,1762493275994,-194.99732046,0.00015,2]
[393341455,1762493277922,-213.54204674,0.00015,2]
[393341456,1762493280010,-164.46490794,0.00015,2]
[393341457,1762493285756,-166.66,0.00014999,2]
[393341458,1762493287430,-133.34,0.00014999,2]
[393341459,1762493287453,-17.66,0.00015,2]
[393341461,1762493288931,-185.97,0.00015,2]
[393341462,1762493301795,7394.79323682,0.0003876,120]
[393341463,1762493305715,-258.9016315,0.00015,2]
[393341464,1762493309252,-294.37900346,0.00015,2]
[393341466,1762493310771,-300.76586344,0.00015,2]
[393341471,1762493317672,-151.0,0.00014999,2]
[393341472,1762493319183,-307.1669507,0.00014999,2]
[393341473,1762493326410,-41.8330493,0.00014999,2]
[393341474,1762493326443,-623.49933843,0.00014999,2]
[393341475,1762493326470,-411.65598313,0.00014999,2]
[393341476,1762493326498,-500.0,0.00014999,2]
[393341477,1762493326530,-289.44740743,0.00014999,2]
[393341478,1762493326559,-500.0,0.00014999,2]
[393341479,1762493326586,-405.5369384,0.00014999,2]
[393341480,1762493327382,-370.48179252,0.00015,2]
[393341481,1762493331844,500.0,0.000144,5]
[393341482,1762493333212,-250.46028837,0.00015,2]
[393341483,1762493333930,1100.0,0.000145,5]
[393341484,1762493335139,-323.264362,0.00015,2]
[393341485,1762493336018,1700.0,0.000146,5]
[393341486,1762493338397,2200.0,0.000147,5]
[393341487,1762493340491,2800.0,0.000148,5]
[393341488,1762493341299,300.0,0.00014999,2]
[393341489,1762493342577,500.0,0.000149,5]
[393341490,1762493343438,-151.0,0.00015,2]
[393341491,1762493349564,-210.61792544,0.00015,2]
[393341492,1762493356798,371.91137566,0.000149,2]
[393341493,1762493357938,-167.34996442,0.00015,2]
[393341494,1762493359355,-259.25212382,0.00015,2]
[393341495,1762493360886,287.6659639,0.000149,2]
[393341496,1762493362034,300.0,0.000144,5]
[393341497,1762493364122,600.0,0.000145,5]
[393341498,1762493365611,-151.0,0.00015,2]
[393341499,1762493366213,900.0,0.000146,5]
[393341500,1762493367620,-268.3820642,0.00015,2]
[393341501,1762493368304,1300.0,0.000147,5]
[393341502,1762493370387,1600.0,0.000148,5]
[393341503,1762493372468,300.0,0.000149,5]
[393341504,1762493373120,-300.0,0.00015,2]
[393341505,1762493374590,-204.65525021,0.00015,2]
[393341506,1762493376142,-180.24228509,0.00015,2]
[393341507,1762493395876,-166.66,0.00015,2]
[393341508,1762493397607,-203.62329649,0.00015,2]
[393341509,1762493401323,1200.0,0.00014999,2]
[393341510,1762493401350,-190.72515153,0.00015,2]
[393341511,1762493401385,300.0,0.00014999,2]
[393341512,1762493402553,150.0,0.00014999,2]
[393341513,1762493404642,500.0,0.00014999,2]
[393341514,1762493405084,-151.0,0.00015,2]
[393341515,1762493407671,-221.80777406,0.00015,2]
[393341516,1762493421070,855.80629474,0.0001499,2]
[393341517,1762493421139,490.68093232,0.0001499,2]
[393341518,1762493421168,365.12536242,0.0001499,2]
[393341519,1762493421221,855.80629474,0.0001499,2]
[393341520,1762493421783,-747.08911296,0.00015,2]
[393341521,1762493424990,-599.43734799,0.00015,2]
[393341545,1762493432282,-1166.47618717,0.00015,2]
[393341548,1762493432293,-1012.11694577,0.00015,2]
[393341550,1762493432304,-477.97880591,0.00015,2]
[393341552,1762493432315,-397.85313191,0.00015,2]
[393341556,1762493432341,-17674.15922092,0.00015,2]
[393341558,1762493432352,-17168.2536569,0.00015,2]
[393341560,1762493432363,-263.220004,0.00015,2]
[393341579,1762493432572,-853.75118995,0.00015,2]
[393341607,1762493436925,500.0,0.00014999,2]
[393341608,1762493438314,-196.72974215,0.00015,2]
[393341609,1762493438331,-4738573.74778322,0.00015,2]
[393341610,1762493438341,-30093.0955279,0.00015,2]
[393341611,1762493438350,-2890798.09794553,0.00015,3]
[393341612,1762493438360,-2500.0,0.00015,2]
[393341613,1762493438370,-195.0,0.00015,2]
[393341614,1762493438379,-193.0,0.00015,2]
[393341615,1762493438389,-300.0,0.00015,2]
[393341616,1762493438399,-311.77463511,0.00015057,2]
[393341617,1762493438408,-2500.0,0.00015089,2]
[393341618,1762493438418,-481.26964055,0.00015089,2]
[393341619,1762493438429,-195.0,0.00015089,2]
[393341620,1762493438438,-193.0,0.00015089,2]
[393341621,1762493438447,-193.0,0.00015089,2]
[393341622,1762493438457,-182.48752424,0.00015148,2]
[393341623,1762493438467,-313.41,0.00015248,2]
[393341624,1762493438480,-313.41,0.00015687,2]
[393341625,1762493438490,-255.0,0.00016124,2]
[393341626,1762493438500,-313.41,0.00016125,2]
[393341627,1762493438510,-420.0,0.00016416,2]
[393341628,1762493438520,-1680.0,0.00016499,2]
[393341629,1762493438531,-250.0,0.000165,2]
[393341630,1762493438540,-2500.0,0.000165,2]
[393341631,1762493438550,-195.0,0.000165,2]
[393341632,1762493438559,-197.18308,0.000165,2]
[393341633,1762493438569,-193.0,0.000165,2]
[393341634,1762493438579,-200.0,0.000165,2]
[393341635,1762493438589,-200.0,0.000165,2]
[393341636,1762493438599,-200.0,0.000165,2]
[393341638,1762493438608,-200.0,0.000165,2]
[393341640,1762493438617,-201.61257308,0.000165,2]
[393341642,1762493438627,-300.0,0.000165,2]
[393341644,1762493438636,-300.0,0.000165,2]
[393341646,1762493438646,-300.0,0.000165,2]
[393341648,1762493438655,-300.0,0.000165,2]
[393341650,1762493438666,-150.0,0.000165,2]
[393341651,1762493438675,-195.0,0.000165,2]
[393341653,1762493438685,-300.0,0.000165,2]
[393341656,1762493438694,-313.41,0.00016564,2]
[393341657,1762493438704,-7263.41,0.00016591,2]
[393341660,1762493438713,-1258.64,0.00016749,2]
[393341662,1762493438726,-250.0,0.00017,2]
[393341664,1762493438735,-313.41,0.00017002,2]
[393341666,1762493438745,-150.0,0.00017047,2]
[393341668,1762493438754,-3415.49,0.00017229,2]
[393341670,1762493438764,-1200.0,0.00017248,2]
[393341672,1762493438774,-9999.85,0.00017249,2]
[393341673,1762493438784,-166.66,0.00017249,2]
[393341674,1762493438794,-250.0,0.00017266,2]
[393341675,1762493438804,-500.0,0.00017283,2]
[393341676,1762493438813,-433.0,0.00017339,2]
[393341677,1762493438823,-200.0,0.0001757,2]
[393341678,1762493438832,-300.0,0.00017597,2]
[393341679,1762493438842,-15194.54,0.00017598,2]
[393341680,1762493438852,-150.99,0.00017598,2]
[393341681,1762493438862,-14294.88,0.00017598,2]
[393341682,1762493438872,-7789.24,0.00017598,2]
[393341683,1762493438882,-9999.99,0.00017598,2]
[393341684,1762493438893,-9999.99,0.00017598,2]
[393341685,1762493438902,-1719.72,0.00017598,2]
[393341686,1762493438912,-166.66,0.00017598,2]
[393341687,1762493438922,-300.0,0.00017737,2]
[393341688,1762493438932,-59308.37,0.00017738,2]
[393341689,1762493438942,-206.40571668,0.00017748,2]
[393341690,1762493438951,-205.37984946,0.00017748,2]
[393341691,1762493438961,-273.74711328,0.00017748,2]
[393341692,1762493438973,-205.58399602,0.00017748,2]
[393341693,1762493438983,-377.24,0.0001776,2]
[393341694,1762493438993,-500.0,0.00017773,2]
[393341695,1762493439004,-500.0,0.00017773,2]
[393341696,1762493439014,-500.0,0.00017773,2]
[393341697,1762493439024,-500.0,0.00017773,2]
[393341698,1762493439034,-500.0,0.00017773,2]
[393341699,1762493439047,-500.71108766,0.00017773,2]
[393341700,1762493439057,-500.0,0.00017773,2]
[393341701,1762493439067,-500.0,0.00017773,2]
[393341702,1762493439076,-500.0,0.00017773,2]
[393341703,1762493439087,-324.9487087,0.00017773,2]
[393341704,1762493439096,-500.0,0.000179,6]
[393341705,1762493439107,-300.0,0.000179,6]
[393341706,1762493439117,-3848.471,0.00017925,2]
[393341707,1762493439126,-279.795,0.00017925,2]
[393341708,1762493439135,-4067.1465,0.00017925,2]
[393341709,1762493439145,-640.36804538,0.00017925,2]
[393341710,1762493439155,-166.66,0.00017946,2]
[393341711,1762493439164,-238.0,0.00017946,2]
[393341712,1762493439174,-587.0,0.00017966,2]
[393341713,1762493439184,-500.0,0.00017973,2]
[393341714,1762493439193,-500.0,0.00017973,2]
[393341715,1762493439203,-500.0,0.00017973,2]
[393341716,1762493439212,-500.0,0.00017973,2]
[393341717,1762493439223,-500.86715567,0.00017973,2]
[393341718,1762493439232,-500.0,0.00017973,2]
[393341719,1762493439242,-500.0,0.00017973,2]
[393341720,1762493439252,-164.13523075,0.00017973,2]
[393341721,1762493439261,-500.0,0.00017973,2]
[393341722,1762493439270,-500.0,0.00017973,2]
[393341723,1762493439280,-607.54870183,0.00017973,2]